fUST/lending_fUST_20240114
["ID","MTS","AMOUNT","RATE_DAILY","PERIOD"]
[311526388,1705186239450,-309.86060067,0.00020211,2]
[311526389,1705186239461,-1250.39757004,0.00020211,2]
[311526390,1705186239472,-323.27217089,0.00020211,2]
[311526391,1705186239483,-155.14313428,0.00020211,2]
[311526392,1705186239493,-264.87381963,0.00020211,2]
[311526393,1705186239503,-199.52290028,0.00020211,2]
[311526394,1705186239513,-155.09147879,0.00020211,2]
[311526395,1705186239523,-361.53035797,0.00020211,2]
[311526396,1705186239532,-508.9606608,0.00020211,2]
[311526397,1705186239543,-167.83694434,0.00020211,2]
[311526398,1705186239552,-469.87027249,0.00020211,2]
[311526399,1705186239561,-309.21329564,0.00020211,2]
[311526400,1705186239571,-215.68928053,0.00020211,2]
[311526401,1705186239580,-301.85753165,0.00020224,2]
[311526402,1705186239590,-309.81411154,0.00020224,2]
[311526403,1705186239599,-155.04777018,0.00020224,2]
[311526404,1705186239609,-1647.46294033,0.00020224,2]
[311526405,1705186239618,-400.02724112,0.00020224,2]
[311526406,1705186239628,-176.56019187,0.00020224,2]
[311526407,1705186239637,-155.14300858,0.00020224,2]
[311526408,1705186239647,-155.34427017,0.00020224,2]
[311526409,1705186239657,-221.97582673,0.00020224,2]
[311526410,1705186239666,-155.04651395,0.00020224,2]
[311526411,1705186239676,-215.9027007,0.00020224,2]
[311526412,1705186239685,-5837.60263382,0.00020443,2]
[311526413,1705186239694,-214.14955568,0.00022,2]
[311526414,1705186239704,-151.0,0.00022779,2]
[311526415,1705186239713,-399.96558986,0.00023288,2]
[311526416,1705186239723,-496.49859958,0.00023288,2]
[311526417,1705186239732,-429.97258824,0.00023288,2]
[311526418,1705186239741,-500.0,0.00023288,2]
[311526419,1705186239751,-500.0,0.00023288,2]
[311526420,1705186239761,-500.0,0.00023288,2]
[311526421,1705186239770,-170.25508678,0.00023288,2]
[311526422,1705186239779,-500.0,0.00023288,2]
[311526423,1705186239789,-186.9807268,0.00023288,2]
[311526424,1705186239798,-450.80527678,0.00023288,2]
[311526425,1705186239807,-280.0,0.0002414,7]
[311526426,1705186239817,-151.0,0.0002535,2]
[311526427,1705186239827,-166.78944766,0.00026,2]
[311526428,1705186239838,-391.0,0.00026553,15]
[311526429,1705186239849,-1955.55471504,0.00027,2]
[311526430,1705186239860,-152.64236015,0.00027913,2]
[311526431,1705186239870,-151.0,0.00027922,2]
[311526432,1705186239880,-12546.41538944,0.00028153,3]
[311526433,1705186239890,-6523.34213319,0.00028155,3]
[311526434,1705186239899,-642.37331156,0.00028159,3]
[311526435,1705186239909,-470.88801109,0.00028161,3]
[311526436,1705186239918,-487.128022,0.0002845,2]
[311526437,1705186239927,-2304.81104845,0.00029,2]
[311526438,1705186239936,-155.19950988,0.00029312,2]
[311526439,1705186239945,-162.73106814,0.00029313,2]
[311526440,1705186239954,-1030.44883336,0.00029313,2]
[311526441,1705186239963,-3882.52891042,0.00029346,2]
[311526442,1705186239972,-173.0263092,0.00029346,2]
[311526443,1705186239982,-405.77459806,0.00029346,2]
[311526444,1705186239993,-290.63763743,0.00029346,2]
[311526445,1705186240003,-787.19129123,0.00029346,2]
[311526446,1705186240012,-236.15738737,0.00029346,2]
[311526447,1705186240021,-347.53056962,0.0002979,3]
[311526448,1705186240031,-222.8,0.00029952,2]
[311526449,1705186240040,-687.09987426,0.0003,4]
[311526450,1705186240148,-649.46848965,0.0003,4]
[311526451,1705186240158,-158.0,0.0003,2]
[311526452,1705186240170,-175.9019673,0.00030036,2]
[311526453,1705186240179,-2000.0,0.000301,2]
[311526454,1705186240190,-2000.0,0.0003011,2]
[311526455,1705186240199,-2000.0,0.0003012,2]
[311526456,1705186240211,-2000.0,0.0003013,2]
[311526457,1705186240220,-500.0,0.00030136,2]
[311526458,1705186240230,-500.0,0.00030136,2]
[311526459,1705186240239,-500.0,0.00030136,2]
[311526460,1705186240248,-500.0,0.00030136,2]
[311526461,1705186240257,-500.0,0.00030136,2]
[311526462,1705186240266,-734.5232974,0.00030136,2]
[311526463,1705186240275,-500.0,0.00030136,2]
[311526464,1705186240284,-500.0,0.00030136,2]
[311526465,1705186240293,-500.0,0.00030136,2]
[311526466,1705186240302,-510.97783528,0.00030136,2]
[311526467,1705186240311,-500.0,0.00030136,2]
[311526468,1705186240320,-645.17173758,0.00030136,2]
[311526469,1705186240329,-500.0,0.00030136,2]
[311526470,1705186240338,-500.0,0.00030136,2]
[311526471,1705186240347,-280.0039697,0.00030136,2]
[311526472,1705186240356,-500.0,0.00030136,2]
[311526473,1705186240365,-500.0,0.00030136,2]
[311526474,1705186240374,-500.0,0.00030136,2]
[311526475,1705186240383,-500.0,0.00030136,2]
[311526476,1705186240393,-357.58884199,0.00030136,2]
[311526477,1705186240403,-500.0,0.00030136,2]
[311526478,1705186240411,-500.0,0.00030136,2]
[311526479,1705186240420,-500.0,0.00030136,2]
[311526480,1705186240429,-500.0,0.00030136,2]
[311526481,1705186240439,-500.0,0.00030136,2]
[311526482,1705186240448,-500.0,0.00030136,2]
[311526483,1705186240458,-500.0,0.00030136,2]
[311526484,1705186240468,-500.0,0.00030136,2]
[311526485,1705186240477,-500.0,0.00030136,2]
[311526486,1705186240487,-500.0,0.00030136,2]
[311526487,1705186240496,-500.0,0.00030136,2]
[311526488,1705186240506,-500.0,0.00030136,2]
[311526489,1705186240515,-500.0,0.00030136,2]
[311526490,1705186240524,-500.0,0.00030136,2]
[311526491,1705186240533,-500.0,0.00030136,2]
[311526492,1705186240542,-500.0,0.00030136,2]
[311526493,1705186240551,-500.0,0.00030136,2]
[311526494,1705186240559,-500.0,0.00030136,2]
[311526495,1705186240569,-500.0,0.00030136,2]
[311526496,1705186240578,-363.90282833,0.00030136,2]
[311526497,1705186240587,-500.0,0.00030136,2]
[311526498,1705186240597,-500.0,0.00030136,2]
[311526499,1705186240606,-500.0,0.00030136,2]
[311526500,1705186240616,-500.0,0.00030136,2]
[311526501,1705186240626,-500.0,0.00030136,2]
[311526502,1705186240636,-500.0,0.00030136,2]
[311526503,1705186240646,-535.78230503,0.00030136,2]
[311526504,1705186240655,-500.0,0.00030136,2]
[311526505,1705186240665,-500.0,0.00030136,2]
[311526506,1705186240674,-500.0,0.00030136,2]
[311526508,1705186240683,-500.0,0.00030136,2]
[311526510,1705186240692,-500.0,0.00030136,2]
[311526511,1705186240701,-500.0,0.00030136,2]
[311526512,1705186240710,-500.0,0.00030136,2]
[311526513,1705186240719,-500.0,0.00030136,2]
[311526514,1705186240729,-766.03,0.00030136,2]
[311526515,1705186240738,-414.16133919,0.00030136,2]
[311526516,1705186240747,-234.93743939,0.00030136,2]
[311526517,1705186240757,-500.0,0.00030136,2]
[311526518,1705186240765,-500.0,0.00030136,2]
[311526519,1705186240774,-500.0,0.00030136,2]
[311526520,1705186240784,-500.0,0.00030136,2]
[311526521,1705186240794,-216.46883088,0.00030136,2]
[311526522,1705186240803,-500.0,0.00030136,2]
[311526523,1705186240812,-2119.22,0.00030136,2]
[311526524,1705186240821,-500.0,0.00030136,2]
[311526525,1705186240830,-4340.26,0.00030136,2]
[311526526,1705186240840,-979.2,0.00030136,2]
[311526527,1705186240849,-500.0,0.00030136,2]
[311526528,1705186240858,-500.0,0.00030136,2]
[311526529,1705186240867,-467.32,0.00030136,2]
[311526530,1705186240876,-1305.33,0.00030136,2]
[311526531,1705186240886,-500.0,0.00030136,2]
[311526532,1705186240895,-500.0,0.00030136,2]
[311526533,1705186240905,-500.0,0.00030136,2]
[311526534,1705186240914,-340.52,0.00030136,2]
[311526535,1705186240923,-573.66885258,0.00030136,2]
[311526536,1705186240932,-7372.37,0.00030136,2]
[311526537,1705186240942,-500.0,0.00030136,2]
[311526538,1705186240951,-500.0,0.00030136,2]
[311526539,1705186240961,-721.07,0.00030136,2]
[311526541,1705186240970,-500.0,0.00030136,2]
[311526543,1705186240979,-1265.38,0.00030136,2]
[311526545,1705186240988,-500.0,0.00030136,2]
[311526546,1705186241001,-758.56,0.00030136,2]
[311526547,1705186241010,-153.0,0.00030137,2]
[311526548,1705186241019,-153.0,0.00030137,2]
[311526549,1705186241028,-153.0,0.00030137,2]
[311526550,1705186241037,-153.0,0.00030137,2]
[311526551,1705186241046,-153.0,0.00030137,2]
[311526552,1705186241055,-153.0,0.00030137,2]
[311526553,1705186241064,-153.0,0.00030137,2]
[311526554,1705186241082,-153.0,0.00030137,2]
[311526555,1705186241095,-153.0,0.00030137,2]
[311526556,1705186241105,-3260.315069,0.0003014,2]
[311526557,1705186241114,-152.64236015,0.00030324,7]
[311526558,1705186241123,-500.0,0.0003041,2]
[311526559,1705186241133,-507.79952891,0.0003041,2]
[311526560,1705186241142,-500.0,0.0003041,2]
[311526561,1705186241152,-500.0,0.0003041,2]
[311526562,1705186241162,-500.0,0.0003041,2]
[311526563,1705186241172,-494.52868408,0.0003041,2]
[311526564,1705186241182,-503.88246748,0.0003041,2]
[311526565,1705186241195,-500.0,0.0003041,2]
[311526566,1705186241204,-500.0,0.0003041,2]
[311526567,1705186241215,-500.0,0.0003041,2]
[311526568,1705186241226,-500.0,0.0003041,2]
[311526569,1705186241237,-623.88810323,0.0003041,2]
[311526570,1705186241247,-500.0,0.0003041,2]
[311526571,1705186241258,-519.44592669,0.0003041,2]
[311526572,1705186241267,-500.0,0.0003041,2]
[311526573,1705186241277,-500.0,0.0003041,2]
[311526574,1705186241286,-192.7,0.0003041,2]
[311526575,1705186241295,-500.0,0.0003041,2]
[311526576,1705186241305,-500.0,0.0003041,2]
[311526577,1705186241315,-500.0,0.0003041,2]
[311526578,1705186241325,-500.0,0.0003041,2]
[311526579,1705186241334,-438.76690528,0.0003041,2]
[311526580,1705186241343,-500.0,0.0003041,2]
[311526581,1705186241351,-500.0,0.0003041,2]
[311526582,1705186241362,-500.0,0.0003041,2]
[311526583,1705186241371,-500.0,0.0003041,2]
[311526584,1705186241381,-500.0,0.0003041,2]
[311526585,1705186241390,-500.0,0.0003041,2]
[311526586,1705186241399,-500.0,0.0003041,2]
[311526587,1705186241409,-500.0,0.0003041,2]
[311526588,1705186241420,-500.0,0.0003041,2]
[311526589,1705186241431,-500.0,0.0003041,2]
[311526590,1705186241443,-420.14,0.0003041,2]
[311526591,1705186241454,-500.0,0.0003041,2]
[311526592,1705186241463,-766.03,0.0003041,2]
[311526593,1705186241473,-500.0,0.0003041,2]
[311526594,1705186241482,-519.16,0.0003041,2]
[311526595,1705186241491,-500.0,0.0003041,2]
[311526596,1705186241501,-500.0,0.0003041,2]
[311526597,1705186241512,-500.0,0.0003041,2]
[311526598,1705186241521,-2119.22,0.0003041,2]
[311526599,1705186241531,-500.0,0.0003041,2]
[311526600,1705186241540,-4340.26,0.0003041,2]
[311526601,1705186241550,-979.2,0.0003041,2]
[311526602,1705186241559,-500.0,0.0003041,2]
[311526603,1705186241569,-500.0,0.0003041,2]
[311526604,1705186241578,-1305.33,0.0003041,2]
[311526605,1705186241587,-500.0,0.0003041,2]
[311526606,1705186241596,-500.0,0.0003041,2]
[311526607,1705186241605,-500.0,0.0003041,2]
[311526608,1705186241615,-7372.37,0.0003041,2]
[311526609,1705186241625,-500.0,0.0003041,2]
[311526610,1705186241635,-612.0,0.0003041,2]
[311526611,1705186241645,-721.07,0.0003041,2]
[311526612,1705186241654,-1265.38,0.0003041,2]
[311526613,1705186241664,-560.27805403,0.0003041,2]
[311526614,1705186241674,-758.56,0.0003041,2]
[311526615,1705186241683,-151.0,0.00030493,2]
[311526616,1705186241693,-3592.46003286,0.00030584,2]
[311526617,1705186241703,-152.0,0.0003066,30]
[311526618,1705186241712,-152.0,0.0003067,30]
[311526619,1705186241722,-152.0,0.0003068,30]
[311526620,1705186241731,-500.0,0.00030683,4]
[311526621,1705186241740,-385.66826994,0.00030683,4]
[311526622,1705186241749,-156.14719902,0.00030683,4]
[311526623,1705186241759,-500.0,0.00030684,2]
[311526624,1705186241769,-500.0,0.00030684,2]
[311526625,1705186241779,-500.0,0.00030684,2]
[311526626,1705186241788,-500.0,0.00030684,2]
[311526627,1705186241797,-500.0,0.00030684,2]
[311526628,1705186241807,-500.0,0.00030684,2]
[311526629,1705186241816,-500.0,0.00030684,2]
[311526630,1705186241826,-279.26281635,0.00030684,2]
[311526631,1705186241837,-277.69274946,0.00030684,2]
[311526632,1705186241847,-333.2,0.00030684,2]
[311526633,1705186241858,-500.0,0.00030684,2]
[311526634,1705186241868,-500.0,0.00030684,2]
[311526635,1705186241878,-500.0,0.00030684,2]
[311526636,1705186241889,-500.0,0.00030684,2]
[311526637,1705186241899,-563.46,0.00030684,2]
[311526638,1705186241910,-500.0,0.00030684,2]
[311526639,1705186241919,-500.0,0.00030684,2]
[311526640,1705186241930,-500.0,0.00030684,2]
[311526641,1705186241940,-500.0,0.00030684,2]
[311526642,1705186241950,-500.0,0.00030684,2]
[311526643,1705186241960,-500.0,0.00030684,2]
[311526644,1705186241971,-500.0,0.00030684,2]
[311526645,1705186241984,-766.03,0.00030684,2]
[311526646,1705186241994,-500.0,0.00030684,2]
[311526647,1705186242004,-500.0,0.00030684,2]
[311526648,1705186242013,-500.0,0.00030684,2]
[311526649,1705186242024,-2119.22,0.00030684,2]
[311526650,1705186242033,-500.0,0.00030684,2]
[311526651,1705186242043,-4340.26,0.00030684,2]
[311526652,1705186242054,-979.2,0.00030684,2]
[311526653,1705186242064,-500.0,0.00030684,2]
[311526654,1705186242075,-500.0,0.00030684,2]
[311526655,1705186242086,-1305.33,0.00030684,2]
[311526656,1705186242097,-500.0,0.00030684,2]
[311526657,1705186242108,-500.0,0.00030684,2]
[311526658,1705186242120,-500.0,0.00030684,2]
[311526659,1705186242132,-7372.37,0.00030684,2]
[311526660,1705186242143,-500.0,0.00030684,2]
[311526661,1705186242154,-721.07,0.00030684,2]
[311526662,1705186242164,-1265.38,0.00030684,2]
[311526663,1705186242174,-758.56,0.00030684,2]
[311526664,1705186242185,-500.0,0.00030958,2]
[311526665,1705186242198,-500.0,0.00030958,2]
[311526666,1705186242208,-500.0,0.00030958,2]
[311526667,1705186242220,-320.14,0.00030958,2]
[311526668,1705186242231,-500.0,0.00030958,2]
[311526669,1705186242240,-500.0,0.00030958,2]
[311526670,1705186242250,-419.61547142,0.00030958,2]
[311526671,1705186242262,-500.0,0.00030958,2]
[311526672,1705186242272,-500.0,0.00030958,2]
[311526673,1705186242282,-500.0,0.00030958,2]
[311526674,1705186242291,-500.0,0.00030958,2]
[311526675,1705186242301,-500.0,0.00030958,2]
[311526676,1705186242312,-500.0,0.00030958,2]
[311526677,1705186242322,-500.0,0.00030958,2]
[311526678,1705186242332,-500.0,0.00030958,2]
[311526679,1705186242341,-500.0,0.00030958,2]
[311526680,1705186242350,-500.0,0.00030958,2]
[311526681,1705186242360,-500.0,0.00030958,2]
[311526682,1705186242371,-766.03,0.00030958,2]
[311526683,1705186242380,-500.0,0.00030958,2]
[311526684,1705186242390,-500.0,0.00030958,2]
[311526685,1705186242401,-500.0,0.00030958,2]
[311526686,1705186242411,-2119.22,0.00030958,2]
[311526687,1705186242422,-500.0,0.00030958,2]
[311526688,1705186242432,-4340.26,0.00030958,2]
[311526689,1705186242442,-979.2,0.00030958,2]
[311526690,1705186242454,-500.0,0.00030958,2]
[311526691,1705186242464,-500.0,0.00030958,2]
[311526692,1705186242474,-1305.33,0.00030958,2]
[311526693,1705186242483,-500.0,0.00030958,2]
[311526694,1705186242494,-500.0,0.00030958,2]
[311526695,1705186242504,-500.0,0.00030958,2]
[311526696,1705186242513,-7372.37,0.00030958,2]
[311526697,1705186242524,-500.0,0.00030958,2]
[311526698,1705186242533,-721.07,0.00030958,2]
[311526699,1705186242543,-1265.38,0.00030958,2]
[311526700,1705186242555,-758.56,0.00030958,2]
[311526701,1705186242565,-2374.25273543,0.0003099,2]
[311526702,1705186242575,-2374.25273543,0.0003099,2]
[311526703,1705186242585,-2374.25273543,0.0003099,2]
[311526704,1705186242594,-2374.25273543,0.0003099,2]
[311526705,1705186242605,-2374.25273543,0.0003099,2]
[311526706,1705186242616,-2374.25273543,0.0003099,2]
[311526707,1705186242625,-2374.25273543,0.0003099,2]
[311526708,1705186242635,-2374.25273543,0.0003099,2]
[311526709,1705186242645,-2374.25273543,0.0003099,2]
[311526710,1705186242655,-2374.25273543,0.0003099,2]
[311526711,1705186242767,-96900.86075861,0.00031,4]
[311526712,1705186242777,-151.0,0.00031,2]
[311526713,1705186242787,-151.0,0.00031,2]
[311526714,1705186242797,-214.58,0.00031232,2]
[311526715,1705186242807,-500.0,0.00031232,2]
[311526716,1705186242816,-500.0,0.00031232,2]
[311526717,1705186242826,-500.0,0.00031232,2]
[311526718,1705186242837,-500.0,0.00031232,2]
[311526719,1705186242846,-500.0,0.00031232,2]
[311526720,1705186242856,-500.0,0.00031232,2]
[311526721,1705186242866,-500.0,0.00031232,2]
[311526722,1705186242875,-500.0,0.00031232,2]
[311526723,1705186242885,-500.0,0.00031232,2]
[311526724,1705186242896,-500.0,0.00031232,2]
[311526725,1705186242906,-500.0,0.00031232,2]
[311526726,1705186242915,-500.0,0.00031232,2]
[311526727,1705186242925,-500.0,0.00031232,2]
[311526728,1705186242936,-500.0,0.00031232,2]
[311526729,1705186242945,-500.0,0.00031232,2]
[311526730,1705186242955,-766.03,0.00031232,2]
[311526731,1705186242965,-500.0,0.00031232,2]
[311526732,1705186242975,-500.0,0.00031232,2]
[311526733,1705186242985,-500.0,0.00031232,2]
[311526734,1705186242999,-2119.22,0.00031232,2]
[311526735,1705186243019,-500.0,0.00031232,2]
[311526736,1705186243039,-4340.26,0.00031232,2]
[311526737,1705186243049,-979.2,0.00031232,2]
[311526738,1705186243059,-500.0,0.00031232,2]
[311526739,1705186243069,-500.0,0.00031232,2]
[311526740,1705186243078,-1305.33,0.00031232,2]
[311526741,1705186243088,-500.0,0.00031232,2]
[311526742,1705186243098,-500.0,0.00031232,2]
[311526743,1705186243107,-500.0,0.00031232,2]
[311526744,1705186243116,-7372.37,0.00031232,2]
[311526745,1705186243126,-500.0,0.00031232,2]
[311526746,1705186243135,-721.07,0.00031232,2]
[311526749,1705186243144,-1265.38,0.00031232,2]
[311526752,1705186243153,-758.56,0.00031232,2]
[311526753,1705186243162,-155.0,0.00031328,2]
[311526754,1705186243171,-571.78,0.00031506,2]
[311526755,1705186243180,-503.57169132,0.00031506,2]
[311526756,1705186243188,-500.0,0.00031506,2]
[311526757,1705186243197,-500.0,0.00031506,2]
[311526758,1705186243206,-500.0,0.00031506,2]
[311526759,1705186243215,-500.0,0.00031506,2]
[311526760,1705186243224,-500.0,0.00031506,2]
[311526761,1705186243233,-500.0,0.00031506,2]
[311526762,1705186243242,-500.0,0.00031506,2]
[311526764,1705186243251,-500.0,0.00031506,2]
[311526765,1705186243260,-500.0,0.00031506,2]
[311526766,1705186243270,-500.0,0.00031506,2]
[311526767,1705186243279,-500.0,0.00031506,2]
[311526768,1705186243288,-500.0,0.00031506,2]
[311526769,1705186243298,-766.03,0.00031506,2]
[311526770,1705186243308,-197.5,0.00031506,2]
[311526771,1705186243317,-500.0,0.00031506,2]
[311526772,1705186243326,-518.48,0.00031506,2]
[311526773,1705186243335,-2119.22,0.00031506,2]
[311526774,1705186243344,-500.0,0.00031506,2]
[311526775,1705186243353,-4340.26,0.00031506,2]
[311526776,1705186243362,-979.2,0.00031506,2]
[311526777,1705186243371,-500.0,0.00031506,2]
[311526778,1705186243380,-500.0,0.00031506,2]
[311526779,1705186243389,-1305.33,0.00031506,2]
[311526780,1705186243398,-500.0,0.00031506,2]
[311526781,1705186243407,-500.0,0.00031506,2]
[311526782,1705186243416,-500.0,0.00031506,2]
[311526783,1705186243425,-7372.37,0.00031506,2]
[311526784,1705186243434,-500.0,0.00031506,2]
[311526785,1705186243443,-721.07,0.00031506,2]
[311526786,1705186243452,-1265.38,0.00031506,2]
[311526787,1705186243461,-758.56,0.00031506,2]
[311526788,1705186243470,-500.0,0.0003178,2]
[311526789,1705186243480,-500.0,0.0003178,2]
[311526790,1705186243489,-500.0,0.0003178,2]
[311526791,1705186243498,-500.0,0.0003178,2]
[311526792,1705186243508,-766.03,0.0003178,2]
[311526793,1705186243517,-2119.22,0.0003178,2]
[311526794,1705186243526,-500.0,0.0003178,2]
[311526795,1705186243535,-4340.26,0.0003178,2]
[311526796,1705186243545,-979.2,0.0003178,2]
[311526797,1705186243554,-500.0,0.0003178,2]
[311526798,1705186243564,-1305.33,0.0003178,2]
[311526799,1705186243573,-500.0,0.0003178,2]
[311526800,1705186243582,-500.0,0.0003178,2]
[311526801,1705186243592,-500.0,0.0003178,2]
[311526802,1705186243601,-7372.37,0.0003178,2]
[311526803,1705186243611,-721.07,0.0003178,2]
[311526804,1705186243622,-1265.38,0.0003178,2]
[311526805,1705186243631,-758.56,0.0003178,2]
[311526806,1705186243642,-223.95903069,0.00031998,4]
[311526807,1705186243651,-380.91677667,0.00031998,2]
[311526808,1705186243662,-233.05375562,0.00031998,2]
[311526809,1705186243672,-1008.78034082,0.00031998,4]
[311526810,1705186243681,-356.80284371,0.00031998,4]
[311526811,1705186243691,-4789.41827786,0.00031998,4]
[311526812,1705186243700,-739.19104755,0.00031998,4]
[311526813,1705186243710,-1500.0,0.00032,2]
[311526814,1705186243719,-620.00167945,0.0003201,2]
[311526815,1705186243729,-500.0,0.0003204,2]
[311526816,1705186243738,-494.08,0.00032054,2]
[311526817,1705186243747,-500.0,0.00032054,2]
[311526818,1705186243757,-595.6,0.00032054,2]
[311526819,1705186243766,-766.03,0.00032054,2]
[311526820,1705186243776,-2119.22,0.00032054,2]
[311526821,1705186243786,-500.0,0.00032054,2]
[311526822,1705186243795,-4340.26,0.00032054,2]
[311526823,1705186243804,-979.2,0.00032054,2]
[311526824,1705186243813,-385.2,0.00032054,2]
[311526825,1705186243823,-1305.33,0.00032054,2]
[311526826,1705186243833,-500.0,0.00032054,2]
[311526827,1705186243843,-500.0,0.00032054,2]
[311526828,1705186243854,-500.0,0.00032054,2]
[311526829,1705186243864,-7372.37,0.00032054,2]
[311526830,1705186243875,-721.07,0.00032054,2]
[311526831,1705186243886,-1265.38,0.00032054,2]
[311526832,1705186243896,-758.56,0.00032054,2]
[311526833,1705186243905,-1000.0,0.00032234,2]
[311526834,1705186243914,-151.0,0.00032328,2]
[311526835,1705186243923,-151.0,0.00032328,2]
[311526836,1705186243933,-151.0,0.00032328,2]
[311526837,1705186243942,-151.0,0.00032328,2]
[311526838,1705186243951,-500.0,0.00032328,2]
[311526839,1705186243960,-766.03,0.00032328,2]
[311526840,1705186243969,-2119.22,0.00032328,2]
[311526841,1705186243978,-500.0,0.00032328,2]
[311526842,1705186243987,-4340.26,0.00032328,2]
[311526843,1705186244000,-979.2,0.00032328,2]
[311526844,1705186244009,-1305.33,0.00032328,2]
[311526845,1705186244018,-500.0,0.00032328,2]
[311526846,1705186244027,-500.0,0.00032328,2]
[311526847,1705186244036,-7372.37,0.00032328,2]
[311526848,1705186244045,-721.07,0.00032328,2]
[311526849,1705186244054,-1265.38,0.00032328,2]
[311526850,1705186244063,-758.56,0.00032328,2]
[311526851,1705186244072,-1008.94763819,0.00032333,2]
[311526852,1705186244081,-1000.0,0.00032379,2]
[311526853,1705186244090,-300.27316262,0.00032471,2]
[311526854,1705186244099,-2181.94094748,0.0003249,2]
[311526855,1705186244108,-240.26658,0.00032499,2]
[311526856,1705186244117,-176.045273,0.00032499,2]
[311526857,1705186244126,-458414.15279481,0.000325,20]
[311526858,1705186244144,-6487.4074999,0.000325,20]
[311526859,1705186244155,-297.89309169,0.000325,20]
[311526860,1705186244234,-301.87875,0.000325,20]
[311526861,1705186244246,-500.3600126,0.000325,20]
[311526862,1705186244257,-14690.19058619,0.000325,20]
[311526874,1705186246936,-912.37766411,0.00030129,4]
[311526875,1705186246946,-215.98708657,0.00030129,4]
[311526876,1705186246955,-254.85877749,0.00030129,4]
[311526877,1705186246964,-210.54002833,0.00030129,4]
[311526878,1705186246973,-197.49,0.0003013,3]
[311526879,1705186246983,-1663.08487536,0.00030683,4]
[311526880,1705186246993,-350970.2061868,0.000325,20]
[311526881,1705186247005,-282.75607304,0.000325,3]
[311526882,1705186247014,-225.72093993,0.000325,4]
[311526883,1705186247024,-155.01395126,0.000325,2]
[311526884,1705186247033,-155.01395126,0.000325,30]
[311526885,1705186247043,-1277.57968259,0.000325,2]
[311526886,1705186247051,-151.0,0.000325,2]
[311526887,1705186247061,-151.0,0.000325,2]
[311526888,1705186247070,-151.0,0.000325,2]
[311526889,1705186247079,-151.0,0.000325,2]
[311526890,1705186247088,-500.0,0.00032602,2]
[311526891,1705186247097,-766.03,0.00032602,2]
[311526892,1705186247107,-2119.22,0.00032602,2]
[311526893,1705186247117,-500.0,0.00032602,2]
[311526894,1705186247126,-4340.26,0.00032602,2]
[311526895,1705186247135,-979.2,0.00032602,2]
[311526896,1705186247144,-1305.33,0.00032602,2]
[311526897,1705186247154,-600.89,0.00032602,2]
[311526898,1705186247163,-500.0,0.00032602,2]
[311526899,1705186247172,-7372.37,0.00032602,2]
[311526900,1705186247181,-721.07,0.00032602,2]
[311526901,1705186247190,-1265.38,0.00032602,2]
[311526902,1705186247199,-758.56,0.00032602,2]
[311526903,1705186247208,-171.590382,0.0003261,2]
[311526904,1705186247217,-166.898221,0.0003261,2]
[311526905,1705186247226,-172.125174,0.0003261,2]
[311526906,1705186247235,-738.956632,0.0003261,2]
[311526907,1705186247245,-316.796674,0.0003261,2]
[311526908,1705186247254,-164.725579,0.0003261,2]